[Event "Early-Titled-Tuesday-Blitz-October-03-2023"]
[Site "Chess.com"]
[Date "2023.10.03"]
[Round "11"]
[White "Gurvich_Vitaly"]
[Black "the_chess_child"]
[Result "0-1"]
[WhiteElo "2734"]
[BlackElo "2868"]
[TimeControl "180+1"]
[EndTime "10:07:41 PDT"]
[Termination "the_chess_child won on time"]

1. e4 {[%clk 0:02:56.6]} 1... c5 {[%clk 0:03:00.4]} 2. Nf3 {[%clk 0:02:55.6]}
2... d6 {[%clk 0:03:00.7]} 3. d4 {[%clk 0:02:55.2]} 3... cxd4 {[%clk 0:03:01.6]}
4. Qxd4 {[%clk 0:02:55.7]} 4... Nc6 {[%clk 0:03:00.6]} 5. Bb5 {[%clk 0:02:55.4]}
5... Nf6 {[%clk 0:02:59.4]} 6. Nc3 {[%clk 0:02:50.3]} 6... Bd7 {[%clk
0:02:57.9]} 7. Bxc6 {[%clk 0:02:50.3]} 7... Bxc6 {[%clk 0:02:58.8]} 8. Bg5
{[%clk 0:02:50]} 8... e6 {[%clk 0:02:56.5]} 9. O-O-O {[%clk 0:02:49.2]} 9... Be7
{[%clk 0:02:56.2]} 10. Qd3 {[%clk 0:02:49.1]} 10... h6 {[%clk 0:02:55.1]} 11.
Bxf6 {[%clk 0:02:26.6]} 11... Bxf6 {[%clk 0:02:56]} 12. Nd4 {[%clk 0:02:27]}
12... Be7 {[%clk 0:02:49.5]} 13. f4 {[%clk 0:02:25.9]} 13... O-O {[%clk
0:02:47]} 14. f5 {[%clk 0:02:26]} 14... Bd7 {[%clk 0:02:33.7]} 15. Kb1 {[%clk
0:02:17.5]} 15... Rc8 {[%clk 0:02:31.2]} 16. Qh3 {[%clk 0:01:59.1]} 16... Bf6
{[%clk 0:02:21.2]} 17. Rhe1 {[%clk 0:01:56]} 17... Qb6 {[%clk 0:02:12.4]} 18.
Qd3 {[%clk 0:01:49.8]} 18... Be5 {[%clk 0:01:59.9]} 19. g3 {[%clk 0:01:41.3]}
19... Rc5 {[%clk 0:01:53.9]} 20. Ka1 {[%clk 0:01:30.9]} 20... Rfc8 {[%clk
0:01:52.1]} 21. fxe6 {[%clk 0:01:23.1]} 21... fxe6 {[%clk 0:01:51.3]} 22. Rf1
{[%clk 0:01:21.9]} 22... a5 {[%clk 0:01:43.2]} 23. g4 {[%clk 0:01:07.8]} 23...
Rc4 {[%clk 0:01:34]} 24. Nde2 {[%clk 0:01:04.1]} 24... a4 {[%clk 0:01:22.4]} 25.
a3 {[%clk 0:01:02.8]} 25... Bb5 {[%clk 0:01:12.1]} 26. Qd2 {[%clk 0:00:25.6]}
26... Rxc3 {[%clk 0:00:53]} 27. Nxc3 {[%clk 0:00:26.5]} 27... Bxf1 {[%clk
0:00:52]} 28. Rxf1 {[%clk 0:00:26.2]} 28... Bxc3 {[%clk 0:00:51.7]} 29. bxc3
{[%clk 0:00:26.7]} 29... Qc5 {[%clk 0:00:51.7]} 30. Rf3 {[%clk 0:00:03.5]} 30...
Qxa3+ {[%clk 0:00:51.5]} 31. Kb1 {[%clk 0:00:03.7]} 31... Rc5 {[%clk 0:00:41.4]}
32. Qd3 {[%clk 0:00:04]} 32... e5 {[%clk 0:00:38.3]} 33. g5 {[%clk 0:00:03.9]}
33... hxg5 {[%clk 0:00:38.1]} 34. Rf5 {[%clk 0:00:03]} 34... Rc6 {[%clk
0:00:26.8]} 35. Qd5+ {[%clk 0:00:02.8]} 35... Kh7 {[%clk 0:00:26.4]} 36. Rf6
{[%clk 0:00:01.4]} 36... Rb6+ {[%clk 0:00:26.2]} 0-1

[Event "Early-Titled-Tuesday-Blitz-October-03-2023"]
[Site "Chess.com"]
[Date "2023.10.03"]
[Round "11"]
[White "ShiroglanTalibov"]
[Black "chito89"]
[Result "1-0"]
[WhiteElo "2927"]
[BlackElo "2822"]
[TimeControl "180+1"]
[EndTime "10:07:42 PDT"]
[Termination "ShiroglanTalibov won on time"]

1. Nf3 {[%clk 0:03:00.9]} 1... d5 {[%clk 0:02:59.1]} 2. g3 {[%clk 0:02:58.7]}
2... Nd7 {[%clk 0:02:59.1]} 3. d4 {[%clk 0:02:57.7]} 3... Nb6 {[%clk 0:02:59.3]}
4. a4 {[%clk 0:02:53.6]} 4... a5 {[%clk 0:02:58.9]} 5. Qd3 {[%clk 0:02:54.3]}
5... Nf6 {[%clk 0:02:56.9]} 6. Bg2 {[%clk 0:02:54.5]} 6... Bg4 {[%clk
0:02:52.3]} 7. Ne5 {[%clk 0:02:53.6]} 7... Bh5 {[%clk 0:02:48.1]} 8. Nc3 {[%clk
0:02:54.2]} 8... e6 {[%clk 0:02:46.1]} 9. e4 {[%clk 0:02:51.5]} 9... Be7 {[%clk
0:02:31.1]} 10. exd5 {[%clk 0:02:44.3]} 10... exd5 {[%clk 0:02:30.8]} 11. Qb5+
{[%clk 0:02:31.5]} 11... c6 {[%clk 0:02:21.5]} 12. Qd3 {[%clk 0:02:31.3]} 12...
O-O {[%clk 0:02:15.5]} 13. O-O {[%clk 0:02:31.2]} 13... Nfd7 {[%clk 0:02:07.5]}
14. Qf5 {[%clk 0:02:23.4]} 14... Nxe5 {[%clk 0:02:00.8]} 15. Qxh5 {[%clk
0:02:23.3]} 15... Ng6 {[%clk 0:01:55.4]} 16. Qd1 {[%clk 0:02:11.8]} 16... Bf6
{[%clk 0:01:53.5]} 17. Ne2 {[%clk 0:02:11.9]} 17... Re8 {[%clk 0:01:53.4]} 18.
Nf4 {[%clk 0:02:10.7]} 18... Nxf4 {[%clk 0:01:49.3]} 19. Bxf4 {[%clk 0:02:10.3]}
19... Nc4 {[%clk 0:01:50]} 20. b3 {[%clk 0:02:08.8]} 20... Nd6 {[%clk 0:01:50]}
21. Qd3 {[%clk 0:02:06.6]} 21... g6 {[%clk 0:01:36.4]} 22. Rfe1 {[%clk
0:02:00.8]} 22... Nf5 {[%clk 0:01:31.2]} 23. c3 {[%clk 0:02:00.4]} 23... Qb6
{[%clk 0:01:30.5]} 24. Qc2 {[%clk 0:01:55.3]} 24... Kg7 {[%clk 0:01:11.8]} 25.
h4 {[%clk 0:01:53]} 25... h5 {[%clk 0:01:08.9]} 26. Bh3 {[%clk 0:01:51.1]} 26...
Ne7 {[%clk 0:01:04.3]} 27. Re2 {[%clk 0:01:49.6]} 27... Ng8 {[%clk 0:01:02.9]}
28. Rae1 {[%clk 0:01:49.1]} 28... Rxe2 {[%clk 0:01:02.4]} 29. Rxe2 {[%clk
0:01:50]} 29... c5 {[%clk 0:01:03]} 30. Be5 {[%clk 0:01:27.9]} 30... Re8 {[%clk
0:01:02.6]} 31. Bd7 {[%clk 0:01:20.5]} 31... Re7 {[%clk 0:00:59.7]} 32. dxc5
{[%clk 0:01:20.9]} 32... Qxc5 {[%clk 0:00:57.1]} 33. Bxf6+ {[%clk 0:01:15]}
33... Nxf6 {[%clk 0:00:58]} 34. Rxe7 {[%clk 0:01:14.3]} 34... Qxe7 {[%clk
0:00:58.9]} 35. Bb5 {[%clk 0:01:13.1]} 35... Qe1+ {[%clk 0:00:48.8]} 36. Kg2
{[%clk 0:01:08.4]} 36... Ne4 {[%clk 0:00:49.2]} 37. c4 {[%clk 0:01:02.8]} 37...
d4 {[%clk 0:00:49.4]} 38. c5 {[%clk 0:01:03.1]} 38... f5 {[%clk 0:00:36.6]} 39.
Bd3 {[%clk 0:00:47.1]} 39... Nc3 {[%clk 0:00:15.4]} 40. Qb2 {[%clk 0:00:34.5]}
40... Kf6 {[%clk 0:00:14.2]} 41. b4 {[%clk 0:00:30.1]} 41... axb4 {[%clk
0:00:04.5]} 42. Qxb4 {[%clk 0:00:30.8]} 42... Qe5 {[%clk 0:00:01.5]} 43. Qb6+
{[%clk 0:00:30.9]} 1-0

[Event "Early-Titled-Tuesday-Blitz-October-03-2023"]
[Site "Chess.com"]
[Date "2023.10.03"]
[Round "11"]
[White "Rutricks"]
[Black "Triumphmate"]
[Result "1-0"]
[WhiteElo "2699"]
[BlackElo "2507"]
[TimeControl "180+1"]
[EndTime "10:07:42 PDT"]
[Termination "Rutricks won on time"]

1. Nf3 {[%clk 0:02:56.6]} 1... d5 {[%clk 0:02:59.5]} 2. b3 {[%clk 0:02:56.9]}
2... e6 {[%clk 0:02:58.7]} 3. Bb2 {[%clk 0:02:57.8]} 3... Nf6 {[%clk 0:02:58.3]}
4. g3 {[%clk 0:02:57.4]} 4... Be7 {[%clk 0:02:58.1]} 5. Bg2 {[%clk 0:02:57.9]}
5... O-O {[%clk 0:02:57.9]} 6. O-O {[%clk 0:02:58.8]} 6... b6 {[%clk 0:02:57.2]}
7. c4 {[%clk 0:02:59.7]} 7... Bb7 {[%clk 0:02:55.3]} 8. e3 {[%clk 0:02:59.8]}
8... Nbd7 {[%clk 0:02:54.2]} 9. Qe2 {[%clk 0:03:00.5]} 9... c5 {[%clk
0:02:53.8]} 10. cxd5 {[%clk 0:03:00.3]} 10... Nxd5 {[%clk 0:02:52.6]} 11. Nc3
{[%clk 0:03:00.6]} 11... Bf6 {[%clk 0:02:52.8]} 12. Rab1 {[%clk 0:03:00.5]}
12... a5 {[%clk 0:02:49.8]} 13. Rfd1 {[%clk 0:02:52.8]} 13... Ba6 {[%clk
0:02:46.4]} 14. Nb5 {[%clk 0:02:47.1]} 14... Bxb2 {[%clk 0:02:30.8]} 15. Rxb2
{[%clk 0:02:48]} 15... Qf6 {[%clk 0:02:30.6]} 16. Rbb1 {[%clk 0:02:15]} 16...
Nc7 {[%clk 0:02:29.6]} 17. a4 {[%clk 0:02:12.6]} 17... Nxb5 {[%clk 0:02:29.9]}
18. axb5 {[%clk 0:02:13.5]} 18... Bb7 {[%clk 0:02:29.6]} 19. Ne5 {[%clk
0:02:11]} 19... Nxe5 {[%clk 0:01:52.8]} 20. Bxb7 {[%clk 0:02:10.8]} 20... Rad8
{[%clk 0:01:50.1]} 21. d4 {[%clk 0:02:11]} 21... cxd4 {[%clk 0:01:49.4]} 22.
exd4 {[%clk 0:02:11.9]} 22... Ng6 {[%clk 0:01:41]} 23. Qc4 {[%clk 0:01:38.1]}
23... Rd6 {[%clk 0:01:25.8]} 24. b4 {[%clk 0:01:24.6]} 24... axb4 {[%clk
0:01:17.9]} 25. Rxb4 {[%clk 0:01:25.5]} 25... Rfd8 {[%clk 0:01:17.5]} 26. Ra4
{[%clk 0:01:22.1]} 26... h5 {[%clk 0:01:15.1]} 27. h4 {[%clk 0:01:21]} 27... Ne5
{[%clk 0:01:09.9]} 28. Qe2 {[%clk 0:00:58.3]} 28... Ng4 {[%clk 0:01:03.7]} 29.
Be4 {[%clk 0:00:33.5]} 29... Rxd4 {[%clk 0:00:51.5]} 30. Rdxd4 {[%clk
0:00:32.8]} 30... Rxd4 {[%clk 0:00:50.3]} 31. Ra8+ {[%clk 0:00:13.2]} 31... Rd8
{[%clk 0:00:49.1]} 32. Bh7+ {[%clk 0:00:13]} 1-0

[Event "Early-Titled-Tuesday-Blitz-October-03-2023"]
[Site "Chess.com"]
[Date "2023.10.03"]
[Round "11"]
[White "JAN2404"]
[Black "nitpicker"]
[Result "0-1"]
[WhiteElo "2078"]
[BlackElo "2239"]
[TimeControl "180+1"]
[EndTime "10:07:47 PDT"]
[Termination "nitpicker won by resignation"]

1. e4 {[%clk 0:03:00.9]} 1... c5 {[%clk 0:02:59.1]} 2. Nf3 {[%clk 0:02:55.5]}
2... d6 {[%clk 0:02:58.7]} 3. d4 {[%clk 0:02:53.4]} 3... cxd4 {[%clk 0:02:58.7]}
4. Nxd4 {[%clk 0:02:51.8]} 4... Nf6 {[%clk 0:02:58.7]} 5. Nc3 {[%clk 0:02:46.1]}
5... Nc6 {[%clk 0:02:58.6]} 6. Bg5 {[%clk 0:02:35.8]} 6... Qb6 {[%clk
0:02:58.2]} 7. Nb3 {[%clk 0:02:26]} 7... e6 {[%clk 0:02:58.2]} 8. Be2 {[%clk
0:02:21.2]} 8... a6 {[%clk 0:02:57.4]} 9. O-O {[%clk 0:02:17.8]} 9... Be7 {[%clk
0:02:57.5]} 10. Qd2 {[%clk 0:02:02.9]} 10... Qc7 {[%clk 0:02:39.4]} 11. Rad1
{[%clk 0:01:45.5]} 11... b5 {[%clk 0:02:38.2]} 12. a3 {[%clk 0:01:43.2]} 12...
Bb7 {[%clk 0:02:34.7]} 13. Rfe1 {[%clk 0:01:31.7]} 13... Rd8 {[%clk 0:02:27.9]}
14. h4 {[%clk 0:01:27.6]} 14... O-O {[%clk 0:02:26.5]} 15. h5 {[%clk 0:01:08.4]}
15... h6 {[%clk 0:02:23.3]} 16. Be3 {[%clk 0:01:09.1]} 16... Ne5 {[%clk
0:02:16.6]} 17. a4 {[%clk 0:01:00.3]} 17... b4 {[%clk 0:02:13.6]} 18. Na2 {[%clk
0:00:56.2]} 18... Nxe4 {[%clk 0:02:05.9]} 19. Qxb4 {[%clk 0:00:50.9]} 19... d5
{[%clk 0:01:28.2]} 20. Qb6 {[%clk 0:00:48.3]} 20... Qxb6 {[%clk 0:01:23.7]} 21.
Bxb6 {[%clk 0:00:47.4]} 21... Rc8 {[%clk 0:01:24.4]} 22. c3 {[%clk 0:00:40.8]}
22... Nc4 {[%clk 0:01:07.3]} 23. Bxc4 {[%clk 0:00:37.3]} 23... Rxc4 {[%clk
0:01:03.5]} 24. Na5 {[%clk 0:00:37.7]} 24... Rxa4 {[%clk 0:01:03.6]} 25. Nc1
{[%clk 0:00:27.6]} 25... Ba8 {[%clk 0:00:57.4]} 26. b3 {[%clk 0:00:27.1]} 26...
Ra1 {[%clk 0:00:55.7]} 27. Ne2 {[%clk 0:00:21.7]} 27... Rxd1 {[%clk 0:00:52.4]}
28. Rxd1 {[%clk 0:00:22.6]} 28... Nf6 {[%clk 0:00:43.9]} 29. Nf4 {[%clk
0:00:15.7]} 29... Rb8 {[%clk 0:00:41.1]} 30. Bd4 {[%clk 0:00:12.9]} 30... Bd8
{[%clk 0:00:34.9]} 31. b4 {[%clk 0:00:13.3]} 31... Ne4 {[%clk 0:00:29.9]} 32.
Nb3 {[%clk 0:00:11]} 32... Bc6 {[%clk 0:00:26.7]} 33. f3 {[%clk 0:00:10.4]}
33... Nd6 {[%clk 0:00:25]} 34. Nc5 {[%clk 0:00:10.3]} 34... Bb5 {[%clk
0:00:23.8]} 35. Be5 {[%clk 0:00:10.7]} 35... Be7 {[%clk 0:00:23]} 36. Nfd3
{[%clk 0:00:08.3]} 36... Rc8 {[%clk 0:00:22]} 37. Re1 {[%clk 0:00:04.3]} 37...
Nc4 {[%clk 0:00:19.3]} 38. g4 {[%clk 0:00:03.4]} 38... a5 {[%clk 0:00:19.3]} 39.
Rb1 {[%clk 0:00:01.9]} 39... Nxe5 {[%clk 0:00:18.7]} 40. Kg2 {[%clk 0:00:02.3]}
40... Nxd3 {[%clk 0:00:18]} 41. Nxd3 {[%clk 0:00:02.2]} 41... Bxd3 {[%clk
0:00:18.2]} 42. Kf2 {[%clk 0:00:02.8]} 42... axb4 {[%clk 0:00:18]} 43. Ke3
{[%clk 0:00:03.7]} 0-1

[Event "Early-Titled-Tuesday-Blitz-October-03-2023"]
[Site "Chess.com"]
[Date "2023.10.03"]
[Round "11"]
[White "Beca95"]
[Black "PeshkaCh"]
[Result "0-1"]
[WhiteElo "2998"]
[BlackElo "2820"]
[TimeControl "180+1"]
[EndTime "10:07:48 PDT"]
[Termination "PeshkaCh won by resignation"]

1. e4 {[%clk 0:03:00.9]} 1... e5 {[%clk 0:02:59.4]} 2. Nf3 {[%clk 0:03:00.8]}
2... Nc6 {[%clk 0:03:00]} 3. Bb5 {[%clk 0:03:00.6]} 3... a6 {[%clk 0:02:59.9]}
4. Ba4 {[%clk 0:03:00.9]} 4... Nge7 {[%clk 0:03:00.3]} 5. c3 {[%clk 0:03:00]}
5... Ng6 {[%clk 0:03:00]} 6. d4 {[%clk 0:02:59.9]} 6... exd4 {[%clk 0:02:58.9]}
7. cxd4 {[%clk 0:03:00.8]} 7... d5 {[%clk 0:02:59.5]} 8. exd5 {[%clk 0:02:59.8]}
8... Qxd5 {[%clk 0:03:00.4]} 9. Nc3 {[%clk 0:02:59.6]} 9... Bb4 {[%clk
0:03:00.7]} 10. O-O {[%clk 0:02:59.5]} 10... Bxc3 {[%clk 0:03:00.5]} 11. bxc3
{[%clk 0:03:00.4]} 11... O-O {[%clk 0:03:00.1]} 12. Bb3 {[%clk 0:02:59.1]} 12...
Qd8 {[%clk 0:02:53.7]} 13. Bg5 {[%clk 0:02:57.9]} 13... Qd6 {[%clk 0:02:51.6]}
14. Re1 {[%clk 0:02:56]} 14... h6 {[%clk 0:02:42]} 15. Bc1 {[%clk 0:02:52.2]}
15... Bf5 {[%clk 0:02:34.9]} 16. d5 {[%clk 0:02:46.5]} 16... Na5 {[%clk
0:02:20.2]} 17. c4 {[%clk 0:02:46.8]} 17... Nxb3 {[%clk 0:02:18]} 18. axb3
{[%clk 0:02:47.7]} 18... Rfe8 {[%clk 0:02:18.5]} 19. Nd4 {[%clk 0:02:42.4]}
19... Bd7 {[%clk 0:02:12.9]} 20. Be3 {[%clk 0:02:41.3]} 20... Re4 {[%clk
0:02:07.6]} 21. f3 {[%clk 0:02:39.3]} 21... Re5 {[%clk 0:01:57.7]} 22. Qd2
{[%clk 0:02:39.3]} 22... Rae8 {[%clk 0:01:57.1]} 23. Bf2 {[%clk 0:02:39.6]}
23... Rxe1+ {[%clk 0:01:56.9]} 24. Rxe1 {[%clk 0:02:39.4]} 24... Rxe1+ {[%clk
0:01:56.4]} 25. Qxe1 {[%clk 0:02:40.3]} 25... Qe7 {[%clk 0:01:43.3]} 26. Qa5
{[%clk 0:02:29.3]} 26... Qg5 {[%clk 0:01:32.8]} 27. g4 {[%clk 0:02:00.6]} 27...
b6 {[%clk 0:00:40.9]} 28. Qe1 {[%clk 0:01:57.4]} 28... Qf6 {[%clk 0:00:31.4]}
29. Qe3 {[%clk 0:01:52]} 29... c5 {[%clk 0:00:27]} 30. dxc6 {[%clk 0:01:50.8]}
30... Bxc6 {[%clk 0:00:27.3]} 31. Bg3 {[%clk 0:01:45.6]} 31... Bb7 {[%clk
0:00:26.6]} 32. Nf5 {[%clk 0:01:44.8]} 32... Qa1+ {[%clk 0:00:25.9]} 33. Kg2
{[%clk 0:01:44]} 33... Qb2+ {[%clk 0:00:21.2]} 34. Bf2 {[%clk 0:01:44]} 34...
Kh7 {[%clk 0:00:20]} 35. h4 {[%clk 0:01:43.1]} 35... b5 {[%clk 0:00:17.4]} 36.
Kg3 {[%clk 0:01:39.4]} 36... bxc4 {[%clk 0:00:17.5]} 37. bxc4 {[%clk 0:01:40.3]}
37... Qe5+ {[%clk 0:00:16.8]} 38. Qxe5 {[%clk 0:01:38.2]} 38... Nxe5 {[%clk
0:00:17.7]} 39. Nd6 {[%clk 0:01:36.7]} 39... Bc6 {[%clk 0:00:15.4]} 40. f4
{[%clk 0:01:32.5]} 40... Nd3 {[%clk 0:00:15.6]} 41. Bb6 {[%clk 0:01:31.5]} 41...
f6 {[%clk 0:00:15.4]} 42. f5 {[%clk 0:01:30.3]} 42... Ne5 {[%clk 0:00:14.8]} 43.
Kf4 {[%clk 0:01:30.4]} 43... Nd3+ {[%clk 0:00:13.8]} 44. Kg3 {[%clk 0:01:27.2]}
44... Ne5 {[%clk 0:00:14.3]} 45. Ba5 {[%clk 0:01:26.9]} 45... Nd3 {[%clk
0:00:14.1]} 46. Nc8 {[%clk 0:01:20.5]} 46... Ne5 {[%clk 0:00:06.8]} 47. Ne7
{[%clk 0:01:20.1]} 47... Bd7 {[%clk 0:00:06.2]} 48. c5 {[%clk 0:01:18.4]} 48...
Nc6 {[%clk 0:00:06.7]} 49. Nxc6 {[%clk 0:01:17.5]} 49... Bxc6 {[%clk 0:00:07.6]}
50. Kf4 {[%clk 0:01:17.2]} 50... Kg8 {[%clk 0:00:08.3]} 51. g5 {[%clk
0:01:13.5]} 51... hxg5+ {[%clk 0:00:09.2]} 52. hxg5 {[%clk 0:01:14]} 52... fxg5+
{[%clk 0:00:10.1]} 53. Kxg5 {[%clk 0:01:14.3]} 53... Kf7 {[%clk 0:00:10.9]} 54.
Bc3 {[%clk 0:01:14.5]} 54... Bb7 {[%clk 0:00:11.4]} 55. Kf4 {[%clk 0:01:14.9]}
55... Bc6 {[%clk 0:00:11.5]} 56. Ke5 {[%clk 0:01:15.3]} 56... Bd7 {[%clk
0:00:11.5]} 57. Bd2 {[%clk 0:01:14.5]} 57... Bc8 {[%clk 0:00:12]} 58. Ba5 {[%clk
0:01:14]} 58... Bd7 {[%clk 0:00:12.3]} 59. Bc3 {[%clk 0:01:13.8]} 59... Kf8
{[%clk 0:00:11.3]} 60. Bd2 {[%clk 0:01:10.9]} 60... Kf7 {[%clk 0:00:11.5]} 61.
Bb4 {[%clk 0:01:11.2]} 61... Ke8 {[%clk 0:00:08.4]} 62. Ke4 {[%clk 0:01:10.3]}
62... Kf7 {[%clk 0:00:08.6]} 63. Kf4 {[%clk 0:01:10.7]} 63... g6 {[%clk
0:00:08.5]} 64. fxg6+ {[%clk 0:01:10.8]} 64... Kxg6 {[%clk 0:00:09.4]} 65. Ke5
{[%clk 0:01:11.4]} 65... Bc6 {[%clk 0:00:09.9]} 66. Kd6 {[%clk 0:01:12.3]} 66...
Bg2 {[%clk 0:00:10.6]} 67. Kc7 {[%clk 0:01:12.9]} 67... a5 {[%clk 0:00:10.5]}
68. Kb6 {[%clk 0:01:13.7]} 68... axb4 {[%clk 0:00:10.6]} 69. c6 {[%clk
0:01:14.6]} 69... Bxc6 {[%clk 0:00:10.4]} 70. Kc5 {[%clk 0:01:15.5]} 70... b3
{[%clk 0:00:11.2]} 71. Kb4 {[%clk 0:01:16.2]} 71... b2 {[%clk 0:00:12.1]} 0-1

[Event "Early-Titled-Tuesday-Blitz-October-03-2023"]
[Site "Chess.com"]
[Date "2023.10.03"]
[Round "11"]
[White "Maxfan2008"]
[Black "QuintilianoR"]
[Result "0-1"]
[WhiteElo "2571"]
[BlackElo "2664"]
[TimeControl "180+1"]
[EndTime "10:07:50 PDT"]
[Termination "QuintilianoR won on time"]

1. d4 {[%clk 0:03:00.9]} 1... Nf6 {[%clk 0:02:55.9]} 2. c4 {[%clk 0:03:01.4]}
2... e6 {[%clk 0:02:55.7]} 3. Nc3 {[%clk 0:03:01.8]} 3... Bb4 {[%clk 0:02:55]}
4. Nf3 {[%clk 0:02:59.4]} 4... b6 {[%clk 0:02:52.8]} 5. e3 {[%clk 0:02:57.7]}
5... Bb7 {[%clk 0:02:52.2]} 6. Bd3 {[%clk 0:02:58]} 6... O-O {[%clk 0:02:44.2]}
7. O-O {[%clk 0:02:56.3]} 7... Bxc3 {[%clk 0:02:42.9]} 8. bxc3 {[%clk
0:02:57.2]} 8... d6 {[%clk 0:02:43]} 9. Nd2 {[%clk 0:02:46.7]} 9... e5 {[%clk
0:02:31]} 10. e4 {[%clk 0:02:44.8]} 10... Re8 {[%clk 0:02:27.4]} 11. f3 {[%clk
0:02:39.8]} 11... Nbd7 {[%clk 0:02:26.1]} 12. Rb1 {[%clk 0:02:26.7]} 12... a5
{[%clk 0:02:14.4]} 13. a4 {[%clk 0:01:54.4]} 13... Rb8 {[%clk 0:02:08]} 14. Nb3
{[%clk 0:01:51.4]} 14... Bc6 {[%clk 0:02:04.4]} 15. Ra1 {[%clk 0:01:40.6]} 15...
Qe7 {[%clk 0:01:42.5]} 16. Bg5 {[%clk 0:01:34.4]} 16... h6 {[%clk 0:01:41.4]}
17. Bh4 {[%clk 0:01:33]} 17... Rbd8 {[%clk 0:01:33.4]} 18. Qd2 {[%clk
0:01:15.8]} 18... Nf8 {[%clk 0:01:30.7]} 19. Bf2 {[%clk 0:01:01.8]} 19... Ng6
{[%clk 0:01:19.7]} 20. Be3 {[%clk 0:00:55.9]} 20... Bb7 {[%clk 0:01:17.3]} 21.
Rae1 {[%clk 0:00:50.4]} 21... Qd7 {[%clk 0:01:16.2]} 22. Ra1 {[%clk 0:00:47.9]}
22... Bc6 {[%clk 0:01:16.1]} 23. d5 {[%clk 0:00:41.2]} 23... Bb7 {[%clk
0:01:03.8]} 24. Rfb1 {[%clk 0:00:37]} 24... Bc8 {[%clk 0:01:02.7]} 25. c5 {[%clk
0:00:34.5]} 25... dxc5 {[%clk 0:01:01.5]} 26. Bb5 {[%clk 0:00:31.7]} 26... Qe7
{[%clk 0:00:56.4]} 27. Bxe8 {[%clk 0:00:32]} 27... Nxe8 {[%clk 0:00:57.3]} 28.
Qf2 {[%clk 0:00:25.4]} 28... Nd6 {[%clk 0:00:57.1]} 29. Nd2 {[%clk 0:00:23.3]}
29... f5 {[%clk 0:00:57]} 30. exf5 {[%clk 0:00:19]} 30... Bxf5 {[%clk
0:00:57.9]} 31. Re1 {[%clk 0:00:16.6]} 31... Rf8 {[%clk 0:00:58.4]} 32. Qe2
{[%clk 0:00:11.5]} 32... Qd7 {[%clk 0:00:57.2]} 33. Bf2 {[%clk 0:00:10.3]} 33...
Kh7 {[%clk 0:00:56.8]} 34. Kh1 {[%clk 0:00:09.9]} 34... Nf4 {[%clk 0:00:54]} 35.
Qa6 {[%clk 0:00:08.7]} 35... Bd3 {[%clk 0:00:42]} 36. Qa7 {[%clk 0:00:07.7]}
36... Qf7 {[%clk 0:00:41.8]} 37. Bg3 {[%clk 0:00:04.6]} 37... e4 {[%clk
0:00:34.1]} 38. Bxf4 {[%clk 0:00:04.1]} 38... Qxf4 {[%clk 0:00:33.6]} 39. Qxc7
{[%clk 0:00:04.3]} 39... Qxd2 {[%clk 0:00:28.6]} 40. Qxd6 {[%clk 0:00:04]} 40...
exf3 {[%clk 0:00:28.5]} 41. gxf3 {[%clk 0:00:03]} 41... Rf6 {[%clk 0:00:25.4]}
42. Qg3 {[%clk 0:00:02.4]} 42... Rg6 {[%clk 0:00:25]} 43. Qh3 {[%clk 0:00:01.5]}
43... Bf5 {[%clk 0:00:22]} 44. Rg1 {[%clk 0:00:02.1]} 44... Bxh3 {[%clk
0:00:21.5]} 0-1